bitfinex/quotes_BTCUSD_20241011
["timestamp","ask_amount","ask_price","bid_price","bid_amount"]
[1728621512653,0.2561253,60604.0,60603.0,0.149324]
[1728621512865,0.2551253,60604.0,60603.0,0.149324]
[1728621513310,0.2561253,60604.0,60603.0,0.149324]
[1728621513528,0.2571253,60604.0,60603.0,0.149324]
[1728621514682,0.1771253,60604.0,60603.0,0.149324]
[1728621515125,0.1761253,60604.0,60603.0,0.149324]
[1728621515344,0.1771253,60604.0,60603.0,0.149324]
[1728621515839,0.1761253,60604.0,60603.0,0.149324]
[1728621516309,0.1771253,60604.0,60603.0,0.149324]
[1728621520245,0.18435103,60604.0,60603.0,0.149324]
[1728621520730,0.01504173,60604.0,60603.0,0.149324]
[1728621521186,0.007816,60604.0,60603.0,0.149324]
[1728621521414,0.01507524,60604.0,60603.0,0.149324]
[1728621551597,0.01507524,60604.0,60603.0,0.000817]
[1728621551598,0.18438454,60604.0,60603.0,0.000817]
[1728621553440,0.18238454,60604.0,60603.0,0.000817]
[1728621553686,0.18338454,60604.0,60603.0,0.000817]
[1728621554411,0.18338454,60604.0,60603.0,0.149324]
[1728621554865,0.18438454,60604.0,60603.0,0.149324]
[1728621569719,0.18438454,60604.0,60603.0,0.000817]
[1728621601088,0.01507524,60604.0,60603.0,0.149324]
[1728621601577,0.007816,60604.0,60603.0,0.149324]
[1728621602029,0.007816,60604.0,60603.0,0.000817]
[1728621602477,0.007816,60604.0,60603.0,0.24808255]
[1728621602733,0.007816,60604.0,60603.0,0.29761089]
[1728621602734,0.01506759,60604.0,60603.0,0.29761089]
[1728621602965,0.007816,60604.0,60603.0,0.24808255]
[1728621603192,0.007816,60604.0,60603.0,0.297608]
[1728621603417,0.007816,60604.0,60603.0,0.29760013]
[1728621603879,0.006816,60604.0,60603.0,0.29760013]
[1728621604122,0.007816,60604.0,60603.0,0.29760013]
[1728621604356,0.006816,60604.0,60603.0,0.29760013]
[1728621604603,0.006816,60604.0,60603.0,0.30660013]
[1728621604828,0.007816,60604.0,60603.0,0.30660013]
[1728621605468,0.007816,60604.0,60603.0,0.30658995]
[1728621606438,0.007816,60604.0,60603.0,0.25708255]
[1728621609154,0.007816,60604.0,60603.0,0.33132449]
[1728621609379,0.007816,60604.0,60603.0,0.30657332]
[1728621609743,0.007816,60604.0,60603.0,0.25708255]
[1728621610181,0.007816,60604.0,60603.0,0.35638255]
[1728621610396,0.007816,60604.0,60603.0,0.514126]
[1728621610607,0.24774756,60629.0,60627.0,0.148448]
[1728621610802,0.24774756,60629.0,60627.0,0.15214799]
[1728621611056,0.24774756,60637.0,60627.0,0.23524787]
[1728621611274,0.24774756,60637.0,60627.0,0.33454787]
[1728621611483,0.24774756,60637.0,60627.0,0.43000806]
[1728621611684,0.24774756,60637.0,60627.0,0.43200806]
[1728621611917,0.24774756,60637.0,60627.0,0.68228901]
[1728621612117,0.24774756,60637.0,60627.0,0.58353046]
[1728621612463,0.24774756,60637.0,60627.0,0.68014028]
[1728621612906,0.24774756,60637.0,60627.0,0.62874884]
[1728621613130,0.002634,60628.0,60627.0,0.63974884]
[1728621613362,0.003634,60628.0,60627.0,0.5993192]
[1728621613588,0.003634,60628.0,60627.0,0.5973192]
[1728621613831,0.003634,60628.0,60627.0,0.5883192]
[1728621613832,0.002634,60628.0,60627.0,0.5883192]
[1728621614070,0.002634,60628.0,60627.0,0.5983192]
[1728621614307,0.002634,60628.0,60627.0,0.54700806]
[1728621614532,0.001634,60628.0,60627.0,0.53800806]
[1728621614758,0.001634,60628.0,60627.0,0.54800806]
[1728621614988,0.001634,60628.0,60627.0,0.54000806]
[1728621615229,0.001634,60628.0,60627.0,0.53800806]
[1728621615561,0.001634,60628.0,60627.0,0.54800806]
[1728621615785,0.001634,60628.0,60627.0,0.54000806]
[1728621616007,0.001634,60628.0,60627.0,0.63876661]
[1728621616253,0.002634,60628.0,60627.0,0.64576661]
[1728621616468,0.002634,60628.0,60627.0,0.64776661]
[1728621616664,0.001634,60628.0,60627.0,0.54000806]
[1728621617153,0.002634,60628.0,60627.0,0.55000806]
[1728621617578,0.001634,60628.0,60627.0,0.53200806]
[1728621617800,0.003634,60628.0,60627.0,0.54800806]
[1728621618030,0.003634,60628.0,60627.0,0.54200806]
[1728621618031,0.002634,60628.0,60627.0,0.54200806]
[1728621618529,0.003634,60628.0,60627.0,0.55000806]
[1728621618924,0.002634,60628.0,60627.0,0.54000806]
[1728621619191,0.002634,60628.0,60627.0,0.63876661]
[1728621619393,0.003634,60628.0,60627.0,0.54900806]
[1728621619709,0.002634,60628.0,60627.0,0.54000806]
[1728621620157,0.003634,60628.0,60627.0,0.54900806]
[1728621620627,0.003634,60628.0,60627.0,0.54700806]
[1728621620873,0.003634,60628.0,60627.0,0.16584951]
[1728621621785,0.003634,60628.0,60627.0,0.165448]
[1728621622005,0.001634,60628.0,60627.0,0.148448]
[1728621622225,0.002634,60628.0,60627.0,0.158448]
[1728621622454,0.002634,60628.0,60627.0,0.16684951]
[1728621622455,0.003634,60628.0,60627.0,0.16684951]
[1728621622668,0.003634,60628.0,60627.0,0.15684951]
[1728621622669,0.002634,60628.0,60627.0,0.15684951]
[1728621622956,0.003634,60628.0,60627.0,0.16684951]
[1728621623157,0.003634,60628.0,60627.0,0.018]
[1728621623395,0.002634,60628.0,60627.0,0.008]
[1728621623620,0.001634,60628.0,60627.0,0.148448]
[1728621623857,0.003634,60628.0,60627.0,0.166448]
[1728621624087,0.002634,60628.0,60627.0,0.158448]
[1728621624531,0.003634,60628.0,60627.0,0.166448]
[1728621625446,0.002634,60628.0,60627.0,0.156448]
[1728621625910,0.003634,60628.0,60627.0,0.166448]
[1728621635319,0.003634,60628.0,60627.0,0.17014807]
[1728621636689,0.003634,60628.0,60627.0,0.17214807]
[1728621637385,0.003634,60628.0,60627.0,0.17014807]
[1728621638983,0.003634,60628.0,60627.0,0.17214807]
[1728621639214,0.003634,60628.0,60627.0,0.17014807]
[1728621640112,0.003634,60628.0,60627.0,0.26644807]
[1728621640770,0.003634,60628.0,60627.0,0.26644763]
[1728621641499,0.003634,60628.0,60627.0,0.26844763]
[1728621641718,0.001634,60628.0,60627.0,0.25044763]
[1728621642167,0.003634,60628.0,60627.0,0.26844763]
[1728621645830,0.003634,60628.0,60627.0,0.71959227]
[1728621646100,0.003634,60628.0,60627.0,0.76175548]
[1728621646320,0.003634,60628.0,60627.0,0.75975548]
[1728621647211,0.002634,60628.0,60627.0,0.75175548]
[1728621647454,0.002634,60628.0,60627.0,0.75875548]
[1728621647676,0.001634,60628.0,60627.0,0.74875548]
[1728621647888,0.001634,60628.0,60627.0,0.74375548]
[1728621648123,0.001634,60628.0,60627.0,0.75975548]
[1728621648540,0.001634,60628.0,60627.0,0.75275548]
[1728621648753,0.001634,60628.0,60627.0,0.75075548]
[1728621648963,0.001634,60628.0,60627.0,0.75975548]
[1728621649640,0.001634,60628.0,60627.0,0.75275548]
[1728621651033,0.001634,60628.0,60627.0,0.75975548]
[1728621653340,0.001634,60628.0,60627.0,0.80896218]
[1728621654243,0.001634,60628.0,60627.0,0.83356553]
[1728621655374,0.001634,60628.0,60627.0,0.85816888]
[1728621656270,0.001634,60628.0,60627.0,0.88277223]
[1728621659442,0.001634,60628.0,60627.0,0.75975548]
[1728621659673,0.001634,60628.0,60627.0,0.88277223]
[1728621660107,0.001634,60628.0,60627.0,0.75975548]
[1728621662116,0.001634,60628.0,60627.0,0.70831736]
[1728621662338,0.001634,60628.0,60627.0,0.75974878]
[1728621673258,0.001634,60628.0,60627.0,0.66099023]
[1728621680447,0.001634,60628.0,60627.0,0.80917281]
[1728621681292,0.001634,60628.0,60627.0,0.66099023]
[1728621682125,0.001634,60628.0,60627.0,0.75974878]
[1728621704382,0.0006448,60628.0,60627.0,0.75974878]
[1728621705504,0.0006448,60628.0,60627.0,0.58634878]
[1728621706204,0.0006448,60628.0,60627.0,0.58434878]
[1728621707839,0.0006448,60628.0,60627.0,0.80358602]
[1728621709010,0.0006448,60628.0,60627.0,0.80558602]
[1728621709268,0.0006448,60628.0,60627.0,0.31628093]
[1728621709516,0.0006448,60628.0,60627.0,0.41503948]
[1728621716565,0.0006448,60628.0,60627.0,0.56350685]
[1728621719817,0.0006448,60628.0,60627.0,0.56432385]
[1728621720290,0.0006448,60628.0,60627.0,0.56431043]
[1728621723400,0.0006448,60628.0,60627.0,0.36555188]
[1728621723607,0.0978448,60628.0,60627.0,0.21709793]
[1728621723821,0.0978448,60628.0,60627.0,0.31585648]
[1728621727013,0.0978448,60628.0,60627.0,0.43952987]
[1728621727269,0.0978448,60628.0,60627.0,0.31585648]
[1728621729345,0.0978448,60628.0,60627.0,0.31545497]
[1728621729578,0.0978448,60628.0,60627.0,0.31585648]
[1728621731574,0.0978448,60628.0,60627.0,0.43950041]
[1728621731792,0.0978448,60628.0,60627.0,0.4390989]
[1728621732027,0.0978448,60628.0,60627.0,0.43950041]
[1728621732247,0.0978448,60628.0,60627.0,0.16566651]
[1728621732473,0.1735448,60628.0,60627.0,0.23985658]
[1728621732904,0.1735448,60628.0,60627.0,0.165265]
[1728621733117,0.1735448,60628.0,60627.0,0.21472145]
[1728621733829,0.1735448,60628.0,60627.0,0.21512296]
[1728621734474,0.1735448,60628.0,60627.0,0.16566651]
[1728621735374,0.1735448,60628.0,60627.0,0.165265]
[1728621741811,0.1735448,60628.0,60627.0,0.16566651]
[1728621743086,0.1735448,60628.0,60627.0,0.165265]
[1728621743338,0.1735448,60628.0,60627.0,0.156265]
[1728621743511,0.1735448,60628.0,60627.0,0.164265]
[1728621743814,0.1735448,60628.0,60627.0,0.16466651]
[1728621744017,0.1735448,60628.0,60627.0,0.149265]
[1728621744236,0.1735448,60628.0,60627.0,0.156265]
[1728621744450,0.1735448,60628.0,60627.0,0.164265]
[1728621745741,0.1735448,60628.0,60627.0,0.16466651]
[1728621746690,0.1735448,60628.0,60627.0,0.164265]
[1728621750890,0.0006448,60628.0,60627.0,0.16466651]
[1728621752229,0.0006448,60628.0,60627.0,0.39648023]
[1728621752457,0.0006448,60628.0,60627.0,0.39318162]
[1728621752670,0.0006448,60628.0,60627.0,0.34376651]
[1728621752888,0.0006448,60628.0,60627.0,0.41788917]
[1728621753077,0.0006448,60628.0,60627.0,0.34176651]
[1728621753360,0.0006448,60628.0,60627.0,0.44259673]
[1728621753588,0.0006448,60628.0,60627.0,0.81066458]
[1728621753838,0.0006448,60628.0,60627.0,0.76332948]
[1728621754052,0.0006448,60628.0,60627.0,0.88686726]
[1728621754296,0.0006448,60628.0,60627.0,0.89875355]
[1728621755174,0.0006448,60628.0,60627.0,0.799995]
[1728621756014,0.0006448,60628.0,60627.0,0.89075355]
[1728621756234,0.0006448,60628.0,60627.0,0.89875355]
[1728621756691,0.0006448,60628.0,60627.0,0.65945722]
[1728621756990,0.0006448,60628.0,60627.0,0.76821577]
[1728621757203,0.0006448,60628.0,60627.0,0.77521577]
[1728621757444,0.0006448,60628.0,60627.0,0.67645722]
[1728621757675,0.0006448,60628.0,60627.0,0.77521577]
[1728621757905,0.0006448,60628.0,60627.0,0.67645722]
[1728621758127,0.0006448,60628.0,60627.0,0.77521577]
[1728621759461,0.0006448,60628.0,60627.0,0.67645722]
[1728621760348,0.0006448,60628.0,60627.0,0.66257093]
[1728621760563,0.0006448,60628.0,60627.0,0.76132948]
[1728621763666,0.0006448,60628.0,60627.0,0.31616163]
[1728621763895,0.0006448,60628.0,60627.0,0.26466651]
[1728621766281,0.0006448,60628.0,60627.0,0.25666651]
[1728621766490,0.0006448,60628.0,60627.0,0.26466651]
[1728621766716,0.0006448,60628.0,60627.0,0.25766651]
[1728621766934,0.0006448,60628.0,60627.0,0.26466651]
[1728621767963,0.0006448,60628.0,60627.0,0.25666651]
[1728621768164,0.0006448,60628.0,60627.0,0.26466651]
[1728621770611,0.0006448,60628.0,60627.0,0.164265]
[1728621770837,0.0006448,60628.0,60627.0,0.16466651]
[1728621771059,0.0006448,60628.0,60627.0,0.164265]
[1728621771629,0.0006448,60628.0,60627.0,0.16466651]
[1728621773722,0.0006448,60628.0,60627.0,0.164265]
[1728621785961,0.0006448,60628.0,60627.0,0.21368976]
[1728621786395,0.0006448,60628.0,60627.0,0.164265]
[1728621788044,0.0006448,60628.0,60627.0,0.23841319]
[1728621788628,0.0006448,60628.0,60627.0,0.23840492]
[1728621789670,0.0006448,60628.0,60627.0,0.24170346]
[1728621793179,0.0006448,60628.0,60627.0,0.24170689]
[1728621796734,0.0006448,60628.0,60627.0,0.2421084]
[1728621797436,0.0006448,60628.0,60627.0,0.23880986]
[1728621797771,0.0006448,60628.0,60627.0,0.23881604]
[1728621798994,0.0006448,60628.0,60627.0,0.33757459]
[1728621800758,0.0006448,60628.0,60627.0,0.23881604]
[1728621801011,0.0006448,60628.0,60627.0,0.33757459]
[1728621801884,0.0006448,60628.0,60627.0,0.23841453]
[1728621802101,0.0006448,60628.0,60627.0,0.164265]
[1728621810995,0.0006448,60628.0,60627.0,0.26302355]
[1728621815192,0.0006448,60628.0,60627.0,0.33722147]
[1728621815444,0.0006448,60628.0,60627.0,0.26302355]
[1728621816393,0.0006448,60628.0,60627.0,0.26632217]
[1728621816617,0.0006448,60628.0,60627.0,0.36525466]
[1728621816842,0.0006448,60628.0,60627.0,0.36195604]
[1728621817509,0.0006448,60628.0,60627.0,0.26302355]
[1728621817770,0.0006448,60628.0,60627.0,0.36525452]
[1728621817987,0.0006448,60628.0,60627.0,0.36195604]
[1728621820349,0.0006448,60628.0,60627.0,0.26319749]
[1728621820582,0.0006448,60628.0,60627.0,0.36525452]
[1728621820783,0.0006448,60628.0,60627.0,0.36195604]
[1728621825267,0.0006448,60628.0,60627.0,0.26302355]
[1728621825432,0.0006448,60628.0,60627.0,0.36525937]
[1728621825651,0.0006448,60628.0,60627.0,0.36196088]
[1728621828163,0.0006448,60628.0,60627.0,0.26320233]
[1728621828383,0.0006448,60628.0,60627.0,0.36525937]
[1728621828601,0.0006448,60628.0,60627.0,0.36196088]
[1728621829811,0.0006448,60628.0,60627.0,0.36196769]
[1728621831062,0.0006448,60628.0,60627.0,0.26320914]
[1728621831330,0.0006448,60628.0,60627.0,0.36196769]
[1728621834451,0.0006448,60628.0,60627.0,0.2632104]
[1728621834676,0.0006448,60628.0,60627.0,0.36196895]
[1728621845243,0.0006448,60628.0,60627.0,0.41352499]
[1728621847025,0.0006448,60628.0,60627.0,0.41352859]
[1728621850042,0.0006448,60628.0,60627.0,0.40552859]
[1728621850261,0.0006448,60628.0,60627.0,0.41352859]
[1728621851175,0.0006448,60628.0,60627.0,0.31457959]
[1728621851630,0.0006448,60628.0,60627.0,0.30757959]
[1728621851841,0.0006448,60628.0,60627.0,0.31457959]
[1728621853414,0.0006448,60628.0,60627.0,0.43827922]
[1728621856066,0.0006448,60628.0,60627.0,0.41356775]
[1728621856268,0.0006448,60628.0,60627.0,0.41357724]
[1728621856508,0.0006448,60628.0,60627.0,0.3620212]
[1728621856718,0.0006448,60628.0,60627.0,0.26326265]
[1728621856940,0.0006448,60628.0,60627.0,0.164265]
[1728621858488,0.0006448,60628.0,60627.0,0.2385196]
[1728621859169,0.0006448,60628.0,60627.0,0.23852442]
[1728621861228,0.0006448,60628.0,60627.0,0.23851931]
[1728621861410,0.0006448,60628.0,60627.0,0.164265]
[1728621862979,0.0006448,60628.0,60627.0,0.23851931]
[1728621863211,0.0006448,60628.0,60627.0,0.164265]
[1728621870443,0.0006448,60628.0,60627.0,0.21373791]
[1728621870858,0.0006448,60628.0,60627.0,0.164265]
[1728621879141,0.0006448,60628.0,60627.0,0.21373655]
[1728621879885,0.0006448,60628.0,60627.0,0.21373729]
[1728621881739,0.0006448,60628.0,60627.0,0.21373394]
[1728621884648,0.0006448,60628.0,60627.0,0.21373441]
[1728621886335,0.0006448,60628.0,60627.0,0.164265]
[1728621886562,0.0006448,60628.0,60627.0,0.2137357]
[1728621889253,0.0006448,60628.0,60627.0,0.21373721]
[1728621889957,0.00039529,60628.0,60627.0,0.21373721]
[1728621893689,0.00039529,60628.0,60627.0,0.164265]
[1728621893938,0.00039529,60628.0,60627.0,0.21374042]
[1728621895603,0.00039529,60628.0,60627.0,0.164265]
[1728621899587,0.00039529,60628.0,60627.0,0.2384822]
[1728621902243,0.00039529,60628.0,60627.0,0.23849913]
[1728621904088,0.00039529,60628.0,60627.0,0.34214408]
[1728621904302,0.00039529,60628.0,60627.0,0.48222069]
[1728621905170,0.00039529,60628.0,60627.0,0.47422069]
[1728621905396,0.00039529,60628.0,60627.0,0.47522069]
[1728621905615,0.00039529,60628.0,60627.0,0.48222069]
[1728621906055,0.00039529,60628.0,60627.0,0.47422069]
[1728621906522,0.00039529,60628.0,60627.0,0.48222069]
[1728621908108,0.00039529,60628.0,60627.0,0.62834067]
[1728621908338,0.00039529,60628.0,60627.0,0.58093461]
[1728621909020,0.00039529,60628.0,60627.0,0.50573461]
[1728621909488,0.00039529,60628.0,60627.0,0.55312067]
[1728621909738,0.00039529,60628.0,60627.0,0.5057292]
[1728621910175,0.00039529,60628.0,60627.0,0.4149292]
[1728621911149,0.00039529,60628.0,60627.0,0.31617065]
[1728621911370,0.00039529,60628.0,60627.0,0.53853244]
[1728621913337,0.00039529,60628.0,60627.0,0.4870283]
[1728621916015,0.00039529,60628.0,60627.0,0.36342506]
[1728621919244,0.00039529,60628.0,60627.0,0.35642506]
[1728621919678,0.00039529,60628.0,60627.0,0.36342506]
[1728621919905,0.00039529,60628.0,60627.0,0.35642506]
[1728621920122,0.00039529,60628.0,60627.0,0.34842506]
[1728621920343,0.00039529,60628.0,60627.0,0.35642506]
[1728621920841,0.00039529,60628.0,60627.0,0.34842506]
[1728621921052,0.00039529,60628.0,60627.0,0.35642506]
[1728621921712,0.00039529,60628.0,60627.0,0.36442506]
[1728621925596,0.00039529,60628.0,60627.0,0.46329511]
[1728621925817,0.00039529,60628.0,60627.0,0.165265]
[1728621925818,0.09049529,60628.0,60627.0,0.165265]
[1728621926100,0.16739529,60628.0,60627.0,0.165265]
[1728621926309,0.17470071,60628.0,60627.0,0.165265]
[1728621928736,0.16739529,60628.0,60627.0,0.165265]
[1728621934541,0.09049529,60628.0,60627.0,0.165265]
[1728621936269,0.00039529,60628.0,60627.0,0.165265]
[1728621941499,0.00039529,60628.0,60627.0,0.157265]
[1728621941718,0.00039529,60628.0,60627.0,0.165265]
[1728621942110,0.00039529,60628.0,60627.0,0.157265]
[1728621942580,0.00039529,60628.0,60627.0,0.165265]
[1728621950884,0.10009529,60628.0,60627.0,0.165265]
[1728621961217,0.00039529,60628.0,60627.0,0.165265]
[1728621988287,0.00039529,60628.0,60627.0,0.26402355]
[1728621988496,0.00039529,60628.0,60627.0,0.48487467]
[1728621989222,0.00039529,60628.0,60627.0,0.43542355]
[1728621993391,0.00039529,60628.0,60627.0,0.48487565]
[1728621994020,0.00039529,60628.0,60627.0,0.4848761]
[1728621998855,0.00039529,60628.0,60627.0,0.75334437]
[1728621999073,0.00039529,60628.0,60627.0,0.85739875]
[1728621999306,0.00039529,60628.0,60627.0,0.70713436]
[1728621999599,0.00039529,60628.0,60627.0,0.75863944]
[1728621999811,0.00039529,60628.0,60627.0,0.75063944]
[1728622000021,0.00039529,60628.0,60627.0,0.75863944]
[1728622000871,0.00039529,60628.0,60627.0,0.75063944]
[1728622001308,0.00039529,60628.0,60627.0,0.74863944]
[1728622002203,0.00039529,60628.0,60627.0,0.87916312]
[1728622002412,0.00039529,60628.0,60627.0,0.86416312]
[1728622002686,0.00039529,60628.0,60627.0,0.87916312]
[1728622002911,0.00039529,60628.0,60627.0,0.87216312]
[1728622003150,0.00039529,60628.0,60627.0,0.83944394]
[1728622003383,0.00039529,60628.0,60627.0,0.79495717]
[1728622003617,0.00039529,60628.0,60627.0,0.80295717]
[1728622004119,0.00039529,60628.0,60627.0,0.79495717]
[1728622004380,0.00039529,60628.0,60627.0,0.69613436]
[1728622004558,0.00039529,60628.0,60627.0,0.79595717]
[1728622004819,0.00039529,60628.0,60627.0,0.80295717]
[1728622005061,0.00039529,60628.0,60627.0,0.79595717]
[1728622005276,0.00039529,60628.0,60627.0,0.69713436]
[1728622005489,0.00039529,60628.0,60627.0,0.70413436]
[1728622005968,0.00039529,60628.0,60627.0,0.69613436]
[1728622006862,0.00039529,60628.0,60627.0,0.70413436]
[1728622009207,0.00039529,60628.0,60627.0,0.80295267]
[1728622009416,0.00039529,60628.0,60627.0,0.70413436]
[1728622010302,0.00039529,60628.0,60627.0,0.80295267]
[1728622011155,0.00039529,60628.0,60627.0,0.53488482]
[1728622011387,0.00039529,60628.0,60627.0,0.36308331]
[1728622012507,0.00039529,60628.0,60627.0,0.36309612]
[1728622014673,0.00039529,60628.0,60627.0,0.36349763]
[1728622015118,0.00039529,60628.0,60627.0,0.46225618]
[1728622015542,0.00039529,60628.0,60627.0,0.48696396]
[1728622015953,0.00039529,60628.0,60627.0,0.53844351]
[1728622016160,0.00039529,60628.0,60627.0,0.41490461]
[1728622016357,0.00039529,60628.0,60627.0,0.53843942]
[1728622017079,0.00039529,60628.0,60627.0,0.54043942]
[1728622017319,0.00039529,60628.0,60627.0,0.59750461]
[1728622017531,0.00039529,60628.0,60627.0,0.76681391]
[1728622018839,0.00039529,60628.0,60627.0,0.76881391]
[1728622019282,0.00039529,60628.0,60627.0,0.78059654]
[1728622021064,0.00039529,60628.0,60627.0,0.76681391]
[1728622022305,0.00039529,60628.0,60627.0,0.21574455]
[1728622022578,0.00039529,60628.0,60627.0,0.2136872]
[1728622022793,0.00039529,60628.0,60627.0,0.164265]
[1728622022995,0.00039529,60628.0,60627.0,0.21368841]
[1728622023628,0.00039529,60628.0,60627.0,0.164265]
[1728622024493,0.00039529,60628.0,60627.0,0.21368841]
[1728622024719,0.00039529,60628.0,60627.0,0.21369371]
[1728622029175,0.00039529,60628.0,60627.0,0.164265]
[1728622029425,0.00039529,60628.0,60627.0,0.21370382]
[1728622029760,0.00039529,60628.0,60627.0,0.164265]
[1728622029963,0.00039529,60628.0,60627.0,0.21370378]
[1728622031031,0.00039529,60628.0,60627.0,0.164265]
[1728622031243,0.00039529,60628.0,60627.0,0.2137097]
[1728622031452,0.00039529,60628.0,60627.0,0.164265]
[1728622032747,0.00039529,60628.0,60627.0,0.23842324]
[1728622033124,0.00039529,60628.0,60627.0,0.164265]
[1728622033324,0.00039529,60628.0,60627.0,0.23842324]
[1728622033753,0.00039529,60628.0,60627.0,0.2384429]
[1728622042839,0.00039529,60628.0,60627.0,0.23846248]
[1728622052319,0.00039529,60628.0,60627.0,0.23846578]
[1728622054718,0.00039529,60628.0,60627.0,0.26319937]
[1728622055138,0.00039529,60628.0,60627.0,0.164265]
[1728622055755,0.00039529,60628.0,60627.0,0.26319937]
[1728622056424,0.00039529,60628.0,60627.0,0.23846653]
[1728622061333,0.00039529,60628.0,60627.0,0.164265]
[1728622061542,0.00039529,60628.0,60627.0,0.2384703]
[1728622063334,0.00039529,60628.0,60627.0,0.164265]
[1728622064223,0.00039529,60628.0,60627.0,0.2632054]
[1728622065808,0.00039529,60628.0,60627.0,0.164265]
[1728622066081,0.00039529,60628.0,60627.0,0.26325817]
[1728622066338,0.00039529,60628.0,60627.0,0.26326035]
[1728622066764,0.00039529,60628.0,60627.0,0.164265]
[1728622067545,0.00039529,60628.0,60627.0,0.26326035]
[1728622068393,0.00039529,60628.0,60627.0,0.26328898]
[1728622069447,0.00039529,60628.0,60627.0,0.26329538]
[1728622069936,0.00039529,60628.0,60627.0,0.26329412]
[1728622070626,0.00039529,60628.0,60627.0,0.26329313]
[1728622075395,0.00039529,60628.0,60627.0,0.26328916]
[1728622080059,0.00039529,60628.0,60627.0,0.164265]
[1728622080280,0.00039529,60628.0,60627.0,0.26328722]
[1728622083468,0.00039529,60628.0,60627.0,0.26328677]
[1728622087111,0.00039529,60628.0,60627.0,0.28804222]
[1728622087317,0.00039529,60628.0,60627.0,0.164265]
[1728622088566,0.00039529,60628.0,60627.0,0.26325978]
[1728622111158,0.00039529,60628.0,60627.0,0.26330667]
[1728622111604,0.18131556,60628.0,60627.0,0.015817]
[1728622111838,0.52727866,60628.0,60627.0,0.015817]
[1728622112096,0.90678425,60628.0,60627.0,0.015817]
[1728622112329,0.90678425,60628.0,60627.0,0.007817]
[1728622112564,1.03265109,60628.0,60627.0,0.007817]
[1728622112775,0.90918069,60628.0,60627.0,0.015817]
[1728622112998,1.07451768,60628.0,60627.0,0.015817]
[1728622114098,1.07451768,60628.0,60627.0,0.007817]
[1728622114317,1.07451768,60628.0,60627.0,0.008817]
[1728622114543,0.96592009,60628.0,60627.0,0.008817]
[1728622114756,0.96592009,60628.0,60627.0,0.016817]
[1728622114966,0.89191988,60628.0,60627.0,0.000817]
[1728622115196,0.96792009,60628.0,60627.0,0.008817]
[1728622115408,1.17468544,60628.0,60627.0,0.008817]
[1728622115635,0.96788882,60628.0,60627.0,0.008817]
[1728622116055,0.86913027,60628.0,60627.0,0.008817]
[1728622116485,0.844458,60628.0,60627.0,0.008817]
[1728622118488,0.79516133,60628.0,60627.0,0.008817]
[1728622127754,0.79516133,60628.0,60627.0,0.000817]
[1728622128096,0.79316133,60628.0,60627.0,0.008817]
[1728622128526,0.79516133,60628.0,60627.0,0.008817]
[1728622129840,0.79516133,60628.0,60627.0,0.000817]
[1728622130027,0.79316133,60628.0,60627.0,0.000817]
[1728622130243,0.79516133,60628.0,60627.0,0.008817]
[1728622130666,0.62782434,60628.0,60627.0,0.008817]
[1728622130889,0.62982434,60628.0,60627.0,0.008817]
[1728622131079,0.62982434,60628.0,60627.0,0.000817]
[1728622131532,0.62982434,60628.0,60627.0,0.008817]
[1728622139281,0.012012,60628.0,60627.0,0.008817]
[1728622139489,0.012012,60628.0,60627.0,0.157265]
[1728622140144,0.010012,60628.0,60627.0,0.157265]
[1728622140367,0.010012,60628.0,60627.0,0.149265]
[1728622140590,0.011012,60628.0,60627.0,0.149265]
[1728622140805,0.010012,60628.0,60627.0,0.157265]
[1728622141229,0.010012,60628.0,60627.0,0.154265]
[1728622141439,0.010012,60628.0,60627.0,0.149265]
[1728622141663,0.010012,60628.0,60627.0,0.157265]
[1728622142093,0.010012,60628.0,60627.0,0.149265]
[1728622142795,0.010012,60628.0,60627.0,0.154265]
[1728622143434,0.010012,60628.0,60627.0,0.162265]
[1728622144547,0.010012,60628.0,60627.0,0.252865]
[1728622144760,0.00039529,60628.0,60627.0,0.252865]
[1728622147706,0.00903093,60628.0,60627.0,0.252865]
[1728622147961,0.00039529,60628.0,60627.0,0.252865]
[1728622148173,0.00903082,60628.0,60627.0,0.162265]
[1728622148412,0.00039529,60628.0,60627.0,0.162265]
[1728622148619,0.00903085,60628.0,60627.0,0.162265]
[1728622148858,0.00039529,60628.0,60627.0,0.162265]
[1728622149072,0.00903087,60628.0,60627.0,0.162265]
[1728622149292,0.00039529,60628.0,60627.0,0.162265]
[1728622149941,1.00039529,60628.0,60627.0,0.162265]
[1728622150372,1.00903093,60628.0,60627.0,0.162265]
[1728622175318,1.00903093,60628.0,60627.0,0.013817]
[1728622183993,1.00903093,60628.0,60627.0,0.162265]
[1728622197678,1.00039529,60628.0,60627.0,0.333165]
[1728622197896,1.00039529,60628.0,60627.0,0.38266793]
[1728622198120,1.00907881,60628.0,60627.0,0.4074194]
[1728622198334,1.00039529,60628.0,60627.0,0.38264274]
[1728622198548,1.00907881,60628.0,60627.0,0.38264274]
[1728622198789,1.00907881,60628.0,60627.0,0.333165]
[1728622199010,1.00907881,60628.0,60627.0,0.325165]
[1728622199225,1.00907881,60628.0,60627.0,0.333165]
[1728622199449,1.00907881,60628.0,60627.0,0.328165]
[1728622199889,1.00907881,60628.0,60627.0,0.327165]
[1728622200119,1.00907881,60628.0,60627.0,0.335165]
[1728622200558,1.00907881,60628.0,60627.0,0.4094194]
[1728622201025,1.00039529,60628.0,60627.0,0.4094194]
[1728622201515,1.00919982,60628.0,60627.0,0.4094194]
[1728622201761,1.00919982,60628.0,60627.0,0.335165]
[1728622202454,1.00919982,60628.0,60627.0,0.3846167]
[1728622202882,1.00039529,60628.0,60627.0,0.3846167]
[1728622203315,0.98419786,60628.0,60627.0,0.3846167]
[1728622204027,0.98419786,60628.0,60627.0,0.6787287]
[1728622204463,0.97539529,60628.0,60627.0,0.6044743]
[1728622204889,0.98420997,60628.0,60627.0,0.6044743]
[1728622205347,0.98420997,60628.0,60627.0,0.5964743]
[1728622205596,0.98420997,60628.0,60627.0,0.6044743]
[1728622205831,0.98420997,60628.0,60627.0,0.696316]
[1728622206062,0.98420997,60628.0,60627.0,0.695316]
[1728622206274,0.98420997,60628.0,60627.0,0.696316]
[1728622206275,0.97539529,60628.0,60627.0,0.696316]
[1728622206693,0.98421619,60628.0,60627.0,0.703316]
[1728622207541,0.98421619,60628.0,60627.0,0.6044743]
[1728622207963,0.97539529,60628.0,60627.0,0.6044743]
[1728622208447,0.98422686,60628.0,60627.0,0.703316]
[1728622208669,0.98422686,60628.0,60627.0,0.6064743]
[1728622208917,0.98422686,60628.0,60627.0,0.70522542]
[1728622209145,0.98422686,60628.0,60627.0,0.73002642]
[1728622209362,0.97539529,60628.0,60627.0,0.5994743]
[1728622209577,0.97539529,60628.0,60627.0,0.69020518]
[1728622209794,0.98422837,60628.0,60627.0,0.70520518]